bitfinex/quotes_BTCUSD_20210402
["timestamp","ask_amount","ask_price","bid_price","bid_amount"]
[1617393236046,0.00099753,58881.0,58876.0,0.00751682]
[1617393237312,0.53430998,58882.0,58876.0,0.00751682]
[1617393238311,0.53430998,58882.0,58880.0,0.34533337]
[1617393238710,0.53530754,58882.0,58880.0,0.34533337]
[1617393239310,0.53430998,58882.0,58880.0,0.34533337]
[1617393240110,0.53430998,58882.0,58876.0,0.00751682]
[1617393240312,0.52930998,58882.0,58876.0,0.00606182]
[1617393241312,0.53030705,58882.0,58876.0,0.00606182]
[1617393242311,0.52930998,58882.0,58876.0,0.00606182]
[1617393242511,0.53030681,58882.0,58876.0,0.00606182]
[1617393242710,0.53284516,58882.0,58876.0,0.00606182]
[1617393244723,0.53184833,58882.0,58876.0,0.00606182]
[1617393245324,0.53284566,58882.0,58876.0,0.00606182]
[1617393245527,0.53184833,58882.0,58876.0,0.00606182]
[1617393245747,0.00099785,58879.0,58876.0,0.00606182]
[1617393245941,0.380386,58878.0,58876.0,0.00606182]
[1617393246340,0.3813837,58878.0,58876.0,0.00606182]
[1617393247940,0.527883,58877.0,58876.0,0.00606182]
[1617393248142,0.53042143,58877.0,58876.0,0.00606182]
[1617393250175,0.39042143,58877.0,58876.0,0.00606182]
[1617393250373,0.00253843,58877.0,58876.0,0.00606182]
[1617393255658,5.2664257,58877.0,58876.0,0.00606182]
[1617393255861,6.71258944,58877.0,58876.0,0.00606182]
[1617393256051,6.76258944,58877.0,58876.0,0.00606182]
[1617393256263,6.12963654,58877.0,58876.0,0.00606182]
[1617393256458,6.54358944,58877.0,58876.0,0.00606182]
[1617393256660,6.15663168,58877.0,58876.0,0.00606182]
[1617393256860,6.59358944,58877.0,58876.0,0.00606182]
[1617393257861,6.0496457,58877.0,58876.0,0.00606182]
[1617393258158,6.49940144,58877.0,58876.0,0.00606182]
[1617393258560,5.38345343,58877.0,58876.0,0.00606182]
[1617393258774,5.35835267,58877.0,58876.0,0.00606182]
[1617393258975,5.06013267,58877.0,58876.0,0.00606182]
[1617393259174,2.63013267,58877.0,58876.0,0.00606182]
[1617393259773,2.61023343,58877.0,58876.0,0.00606182]
[1617393260172,5.6812377,58877.0,58876.0,0.00606182]
[1617393260373,4.96023343,58877.0,58876.0,0.00606182]
[1617393261398,2.61023343,58877.0,58876.0,0.00606182]
[1617393261598,1.08023343,58877.0,58876.0,0.00606182]
[1617393262105,0.82542143,58877.0,58876.0,0.00606182]
[1617393262301,0.39042143,58877.0,58876.0,0.00606182]
[1617393264549,0.00253843,58877.0,58876.0,0.00606182]
[1617393265152,0.52930998,58882.0,58876.0,0.00606182]
[1617393265153,0.52684841,58882.0,58876.0,0.00606182]
[1617393265351,0.387883,58881.0,58876.0,0.00606182]
[1617393265549,0.135,58880.0,58876.0,0.00606182]
[1617393265750,0.380386,58879.0,58876.0,0.00606182]
[1617393266351,0.52684841,58882.0,58876.0,0.00606182]
[1617393266551,0.52684841,58882.0,58876.0,0.44907182]
[1617393266749,0.52684841,58882.0,58878.0,0.22]
[1617393267179,0.52684841,58882.0,58879.0,0.387883]
[1617393267381,0.52684841,58882.0,58879.0,0.642619]
[1617393268576,0.52684841,58882.0,58881.0,2.227883]
[1617393268779,0.52684841,58882.0,58881.0,2.492883]
[1617393269398,0.52684841,58882.0,58881.0,0.652883]
[1617393270200,0.52684841,58882.0,58881.0,2.442883]
[1617393271004,0.52684841,58882.0,58881.0,0.652883]
[1617393271205,0.52684841,58882.0,58881.0,0.265]
[1617393272402,0.52684841,58882.0,58879.0,0.254736]
[1617393274821,0.52684841,58882.0,58880.0,0.00751656]
[1617393275223,0.387883,58881.0,58880.0,0.00751656]
[1617393276028,0.52684841,58882.0,58880.0,0.00751656]
[1617393277850,0.387883,58881.0,58880.0,0.00751656]
[1617393278049,0.522883,58881.0,58880.0,0.00751656]
[1617393281684,0.902363,58881.0,58880.0,0.00751656]
[1617393282123,1.53,58880.0,58866.0,0.00103637]
[1617393282340,1.53,58880.0,58869.0,0.004]
[1617393282532,0.38148,58881.0,58869.0,0.004]
[1617393283122,0.38148,58881.0,58872.0,0.254761]
[1617393283320,0.387883,58880.0,58872.0,0.254761]
[1617393283521,0.002,58881.0,58872.0,0.254761]
[1617393283922,0.002,58881.0,58872.0,0.258761]
[1617393284322,0.52684841,58882.0,58872.0,0.258761]
[1617393285928,0.52684841,58882.0,58872.0,0.53775673]
[1617393286130,0.52684841,58882.0,58873.0,0.83187873]
[1617393286331,0.52684841,58882.0,58876.0,0.387883]
[1617393286533,0.52684841,58882.0,58880.0,0.387883]
[1617393286931,0.52684841,58882.0,58880.0,0.62186888]
[1617393287134,0.52684841,58882.0,58881.0,4.58186888]
[1617393287333,0.52684841,58882.0,58881.0,5.38186888]
[1617393287766,0.52684841,58882.0,58881.0,5.42687873]
[1617393288168,0.52684841,58882.0,58881.0,5.402606]
[1617393291385,0.52684841,58882.0,58881.0,5.014723]
[1617393291589,0.52684841,58882.0,58881.0,1.054723]
[1617393291786,0.52684841,58882.0,58881.0,1.044723]
[1617393292185,0.52684841,58882.0,58881.0,0.254723]
[1617393295416,0.52684841,58882.0,58876.0,0.3]
[1617393295858,0.52184841,58882.0,58876.0,0.3]
[1617393296463,0.52184841,58882.0,58875.0,0.339631]
[1617393296665,0.387883,58881.0,58875.0,0.339631]
[1617393296866,0.135,58880.0,58875.0,0.339631]
[1617393297162,0.380386,58879.0,58875.0,0.339631]
[1617393299566,0.23398588,58878.0,58867.0,0.339675]
[1617393299772,0.43098588,58878.0,58867.0,0.339675]
[1617393300269,0.00299748,58878.0,58867.0,0.339675]
[1617393300470,0.00299748,58878.0,58868.0,0.38891937]
[1617393300471,0.002,58878.0,58868.0,0.38891937]
[1617393300667,0.002,58878.0,58871.0,0.254766]
[1617393301291,0.00299754,58878.0,58871.0,0.254766]
[1617393301492,0.00099754,58877.0,58867.0,0.339675]
[1617393301693,0.00099754,58877.0,58865.0,0.00103637]
[1617393301891,0.002,58877.0,58867.0,0.00103637]
[1617393302691,0.002,58877.0,58867.0,0.16030925]
[1617393302892,0.002,58877.0,58868.0,0.375]
[1617393303297,0.002,58877.0,58869.0,0.0044]
[1617393303914,0.002,58877.0,58869.0,0.16476722]
[1617393304516,0.31007712,58879.0,58869.0,0.16476722]
[1617393304717,0.135,58878.0,58870.0,0.24]
[1617393305115,0.135,58878.0,58869.0,0.16476722]
[1617393305318,0.0019951,58880.0,58871.0,0.387883]
[1617393305725,0.00399508,58881.0,58870.0,0.00103637]
[1617393306337,0.00399508,58881.0,58871.0,0.0046]
[1617393306741,0.387883,58880.0,58865.0,0.00103637]
[1617393306940,0.002,58877.0,58864.0,0.4776]
[1617393307146,0.387883,58876.0,58864.0,0.4776]
[1617393307342,0.23324798,58875.0,58864.0,0.4776]
[1617393307740,0.535386,58874.0,58864.0,0.4776]
[1617393309365,0.380386,58874.0,58865.0,0.00751797]
[1617393310168,0.23324798,58873.0,58865.0,0.00751797]
[1617393311169,0.254835,58869.0,58865.0,0.00751797]
[1617393311394,0.689685,58869.0,58865.0,0.00751797]
[1617393311594,0.145,58868.0,58865.0,0.00751797]
[1617393311800,0.387883,58867.0,58865.0,0.00751797]
[1617393315418,0.415386,58866.0,58865.0,0.00751797]
[1617393315618,0.815386,58866.0,58865.0,0.00751797]
[1617393316419,0.850386,58866.0,58865.0,0.00751797]
[1617393317438,1.82624327,58866.0,58865.0,0.00751797]
[1617393317639,5.63549125,58866.0,58865.0,0.00751797]
[1617393317839,6.02543499,58866.0,58865.0,0.00751797]
[1617393318038,6.17549125,58866.0,58865.0,0.00251797]
[1617393318240,6.56543499,58866.0,58865.0,0.00251797]
[1617393319040,0.72100427,58864.0,58847.0,0.04]
[1617393319263,0.00197144,58862.0,58847.0,0.04]
[1617393319463,0.154,58854.0,58847.0,0.04]
[1617393319662,0.98904887,58853.0,58845.0,0.075]
[1617393319862,0.98904887,58853.0,58830.0,0.4934]
[1617393319863,4.340386,58851.0,58830.0,0.4934]
[1617393320062,6.09033401,58851.0,58830.0,0.4934]
[1617393320261,5.56932974,58851.0,58830.0,0.4934]
[1617393320464,5.51932974,58851.0,58830.0,0.4934]
[1617393320663,5.41932974,58851.0,58830.0,0.4934]
[1617393320865,5.36932974,58851.0,58830.0,0.4934]
[1617393322487,5.33021974,58851.0,58830.0,0.4934]
[1617393323086,1.37021974,58851.0,58830.0,0.4934]
[1617393323289,1.20121974,58851.0,58833.0,0.254929]
[1617393323487,0.76621974,58851.0,58830.0,0.6494]
[1617393323688,0.76621974,58851.0,58831.0,0.9724]
[1617393323689,0.035,58851.0,58831.0,0.9724]
[1617393323888,0.035,58857.0,58832.0,0.04]
[1617393324092,0.035,58857.0,58849.0,0.004]
[1617393324286,0.387883,58856.0,58849.0,0.004]
[1617393324527,0.035,58855.0,58849.0,0.004]
[1617393324921,0.035,58855.0,58851.0,0.537883]
[1617393325327,0.035,58855.0,58854.0,3.63]
[1617393325523,0.035,58855.0,58854.0,4.366713]
[1617393325727,0.035,58855.0,58854.0,4.621555]
[1617393325925,0.035,58855.0,58854.0,5.546555]
[1617393326523,0.035,58855.0,58854.0,5.846555]
[1617393327367,0.035,58855.0,58854.0,5.546555]
[1617393327565,0.035,58867.0,58855.0,0.21522773]
[1617393327766,0.035,58867.0,58855.0,1.21522773]
[1617393327978,0.2672724,58867.0,58855.0,1.0]
[1617393328169,0.002,58865.0,58850.0,0.995]
[1617393328371,0.037,58865.0,58850.0,0.999]
[1617393328565,0.19,58864.0,58850.0,0.999]
[1617393328765,0.035,58863.0,58850.0,0.995]
[1617393328963,0.035,58863.0,58851.0,0.2]
[1617393329789,0.035,58863.0,58851.0,0.194103]
[1617393330394,0.75600427,58863.0,58851.0,0.194103]
[1617393330598,0.75600427,58863.0,58850.0,0.995]
[1617393330599,0.80600427,58863.0,58850.0,0.995]
[1617393330798,0.387883,58860.0,58850.0,0.995]
[1617393330999,0.380386,58857.0,58850.0,0.995]
[1617393331198,4.000386,58851.0,58850.0,0.995]
[1617393331399,4.515206,58851.0,58850.0,0.995]
[1617393331794,4.96821974,58851.0,58850.0,0.995]
[1617393332000,5.61528974,58851.0,58850.0,0.995]
[1617393332397,5.95523674,58851.0,58850.0,0.995]
[1617393332596,5.604403,58851.0,58850.0,0.995]
[1617393333601,1.984403,58851.0,58850.0,0.995]
[1617393334402,1.934403,58851.0,58850.0,0.995]
[1617393335419,3.064403,58851.0,58850.0,0.995]
[1617393335820,1.934403,58851.0,58850.0,0.995]
[1617393337020,0.968706,58851.0,58850.0,0.995]
[1617393337226,0.415386,58851.0,58850.0,0.995]
[1617393337428,0.035,58851.0,58850.0,1.382883]
[1617393337656,0.035,58858.0,58850.0,1.382883]
[1617393337861,0.035,58858.0,58851.0,0.205]
[1617393338856,0.254903,58856.0,58851.0,0.205]
[1617393339055,0.03,58855.0,58851.0,0.205]
[1617393339254,0.03,58855.0,58852.0,0.14]
[1617393342074,0.03,58859.0,58850.0,0.995]
[1617393343510,0.025,58859.0,58850.0,0.995]
[1617393343709,0.025,58859.0,58851.0,0.185]
[1617393344710,0.025,58859.0,58850.0,0.995]
[1617393347126,0.025,58859.0,58852.0,0.19]
[1617393347332,0.025,58859.0,58853.0,0.66687873]
[1617393347528,0.025,58863.0,58854.0,0.27899573]
[1617393347732,0.025,58863.0,58855.0,0.69584]
[1617393347929,0.025,58863.0,58856.0,0.27899573]
[1617393348149,0.025,58863.0,58857.0,0.387883]
[1617393348349,0.025,58863.0,58857.0,0.89647873]
[1617393348546,0.025,58863.0,58857.0,0.617483]
[1617393348749,0.025,58863.0,58859.0,0.254812]
[1617393348951,0.025,58863.0,58860.0,0.562883]
[1617393349348,0.025,58863.0,58862.0,3.127883]
[1617393350549,0.025,58867.0,58863.0,0.53]
[1617393350769,0.025,58867.0,58864.0,0.387883]
[1617393351168,0.025,58867.0,58863.0,0.53]
[1617393351371,0.387883,58866.0,58861.0,0.004]
[1617393351574,0.025,58865.0,58858.0,0.004]
[1617393351772,0.380386,58864.0,58855.0,0.254827]
[1617393351975,0.23,58862.0,58855.0,0.254827]
[1617393352173,0.025,58861.0,58855.0,0.254827]
[1617393352372,0.025,58861.0,58854.0,0.0048]
[1617393352570,0.025,58861.0,58855.0,0.155]
[1617393355200,0.02899489,58867.0,58854.0,0.0048]
[1617393355399,0.02899489,58867.0,58854.0,0.1648]
[1617393356023,0.254857,58865.0,58854.0,0.1648]
[1617393356226,0.025,58864.0,58854.0,0.1648]
[1617393356425,0.025,58864.0,58854.0,0.00459564]
[1617393357224,0.19,58863.0,58854.0,0.00459564]
[1617393357476,0.025,58862.0,58854.0,0.28359137]
[1617393357676,0.025,58862.0,58855.0,0.387883]
[1617393358475,0.025,58862.0,58857.0,0.387883]
[1617393359479,0.025,58862.0,58854.0,0.00459564]
[1617393359878,0.025,58862.0,58857.0,0.159]
[1617393360077,0.025,58862.0,58858.0,0.387883]
[1617393360476,0.02899159,58867.0,58858.0,0.387883]
[1617393360678,0.155,58866.0,58856.0,0.254826]
[1617393360880,0.025,58865.0,58856.0,0.254826]
[1617393361479,0.025,58865.0,58857.0,0.387883]
[1617393361880,0.025,58865.0,58856.0,0.254826]
[1617393364102,0.02899131,58867.0,58856.0,0.254826]
[1617393364303,0.23,58866.0,58856.0,0.254826]
[1617393364503,0.02899131,58867.0,58856.0,0.254826]
[1617393364504,0.025,58865.0,58856.0,0.254826]
[1617393365103,0.025,58865.0,58854.0,0.00459564]
[1617393366727,0.254873,58862.0,58851.0,0.00103637]
[1617393366925,0.025,58861.0,58850.0,0.995]
[1617393367727,0.02698599,58861.0,58850.0,0.995]
[1617393367924,0.025,58861.0,58851.0,0.38]
[1617393368326,0.025,58861.0,58850.0,0.995]
[1617393369955,0.027,58862.0,58850.0,0.995]
[1617393370156,0.027,58862.0,58851.0,0.365]
[1617393371157,0.00198908,58857.0,58852.0,0.387883]
[1617393371555,0.00198908,58857.0,58850.0,0.999]
[1617393371777,0.00198908,58857.0,58851.0,0.387883]
[1617393371979,0.00199053,58856.0,58851.0,0.387883]
[1617393372177,0.00199053,58856.0,58853.0,0.387883]
[1617393372421,0.01989077,58860.0,58853.0,0.387883]
[1617393372422,0.00199121,58857.0,58853.0,0.387883]
[1617393372620,0.00199121,58857.0,58854.0,0.2]
[1617393373031,0.00199121,58857.0,58855.0,0.215]
[1617393373627,0.002,58862.0,58855.0,0.215]
[1617393373824,0.0019881,58864.0,58855.0,0.215]
[1617393374025,0.19,58863.0,58855.0,0.215]
[1617393374225,0.025,58862.0,58851.0,0.254867]
[1617393374425,0.2322724,58861.0,58851.0,0.254867]
[1617393374627,0.025,58860.0,58851.0,0.254867]
[1617393375026,0.025,58860.0,58850.0,0.999]
[1617393377654,0.02698694,58862.0,58850.0,0.999]
[1617393377850,0.2322724,58861.0,58850.0,0.999]
[1617393378053,0.025,58860.0,58851.0,0.33]
[1617393378255,0.025,58860.0,58850.0,0.995]
[1617393379260,0.254884,58859.0,58850.0,0.995]
[1617393379459,0.025,58858.0,58850.0,0.995]
[1617393380460,0.254897,58857.0,58851.0,0.23]
[1617393380659,0.025,58856.0,58851.0,0.23]
[1617393380859,0.025,58856.0,58850.0,0.995]
[1617393382061,0.00199333,58855.0,58850.0,0.995]
[1617393382883,0.00199333,58855.0,58851.0,0.387883]
[1617393383287,0.025,58856.0,58851.0,0.387883]
[1617393383482,0.025,58856.0,58850.0,0.995]
[1617393383684,0.001994,58857.0,58850.0,0.995]
[1617393384286,0.00199265,58856.0,58850.0,0.995]
[1617393384486,0.00199265,58856.0,58851.0,0.387883]
[1617393384685,0.00199165,58857.0,58851.0,0.387883]
[1617393384912,0.00199176,58856.0,58851.0,0.66687873]
[1617393385114,0.00199176,58856.0,58852.0,0.66899573]
[1617393385317,0.00199193,58858.0,58855.0,3.211]
[1617393385514,0.00199193,58858.0,58856.0,0.387883]
[1617393386112,0.00199193,58858.0,58857.0,3.887883]
[1617393386313,0.02798616,58860.0,58857.0,4.142719]
[1617393386314,0.00199231,58859.0,58857.0,4.142719]
[1617393386513,0.02199231,58860.0,58859.0,1.72]
[1617393386711,0.00298885,58861.0,58859.0,2.107883]
[1617393386910,0.00298885,58861.0,58860.0,2.567883]
[1617393387116,0.00298885,58861.0,58860.0,3.052883]
[1617393387317,0.02199231,58867.0,58860.0,3.33187873]
[1617393387318,0.00298805,58862.0,58860.0,3.33187873]
[1617393387583,0.00298885,58863.0,58861.0,4.81752454]
[1617393387779,0.00298909,58864.0,58862.0,4.387883]
[1617393387983,0.02199231,58867.0,58862.0,4.387883]
[1617393388179,0.02199231,58867.0,58863.0,0.96393621]
[1617393388379,0.02199231,58867.0,58865.0,0.254782]
[1617393388578,0.02199231,58867.0,58866.0,3.81]
[1617393388780,0.02199231,58867.0,58866.0,4.352883]
[1617393389181,0.02199231,58867.0,58866.0,5.212883]
[1617393389982,0.02199231,58867.0,58866.0,5.552574]
[1617393390782,0.01699231,58867.0,58866.0,5.552574]
[1617393393688,0.01699231,58867.0,58866.0,5.397574]
[1617393394488,0.01699231,58867.0,58866.0,5.697574]
[1617393394891,0.01699231,58867.0,58866.0,5.397574]
[1617393396904,0.01677682,58867.0,58866.0,5.397574]
[1617393397507,0.01677682,58867.0,58866.0,5.552574]
[1617393398734,0.01677682,58867.0,58866.0,5.83156973]
[1617393398934,0.01677682,58867.0,58866.0,5.552574]
[1617393399134,0.01677682,58867.0,58866.0,5.652574]
[1617393399535,0.01677682,58867.0,58866.0,5.651518]
[1617393399738,0.01677682,58867.0,58866.0,5.551518]
[1617393400142,0.01677682,58867.0,58866.0,5.851518]
[1617393400337,0.01177682,58867.0,58866.0,5.851518]
[1617393400539,0.01177682,58867.0,58866.0,5.511518]
[1617393400760,0.01177682,58867.0,58866.0,1.587574]
[1617393400959,0.01177682,58867.0,58866.0,0.727574]
[1617393401557,0.01177682,58867.0,58866.0,1.947574]
[1617393401755,0.01177682,58867.0,58866.0,0.727574]
[1617393401958,0.01177682,58867.0,58866.0,0.927574]
[1617393402661,0.01177682,58867.0,58866.0,2.197574]
[1617393403496,0.01177682,58867.0,58866.0,1.082574]
[1617393403695,0.01177682,58867.0,58866.0,1.742574]
[1617393403896,0.01177682,58867.0,58866.0,1.082574]
[1617393404495,0.01177682,58867.0,58866.0,1.922574]
[1617393404699,0.01177682,58867.0,58866.0,1.082574]
[1617393406326,0.01177682,58867.0,58866.0,0.927574]
[1617393406527,0.01177682,58867.0,58866.0,0.539691]
[1617393407326,0.00677682,58867.0,58866.0,0.539691]
[1617393407728,0.00677682,58867.0,58866.0,0.2]
[1617393408127,0.00677682,58867.0,58861.0,0.31728285]
[1617393409146,0.00677682,58867.0,58862.0,0.387883]
[1617393409542,0.00677682,58867.0,58861.0,0.31728285]
[1617393409745,0.00677682,58867.0,58862.0,0.387883]
[1617393409944,0.00677682,58867.0,58863.0,0.16]
[1617393410147,0.00677682,58867.0,58864.0,0.387883]
[1617393410554,0.00677682,58867.0,58866.0,4.116]
[1617393410745,0.00677682,58867.0,58866.0,4.503883]
[1617393410946,0.00677682,58867.0,58866.0,4.843569]
[1617393411152,0.00677682,58867.0,58866.0,5.788569]
[1617393412356,0.00677682,58867.0,58866.0,5.828569]
[1617393412558,0.00677682,58867.0,58866.0,5.978569]
[1617393413161,0.00677682,58867.0,58866.0,5.878569]
[1617393413357,0.00677682,58867.0,58866.0,5.828569]
[1617393413558,0.00677682,58867.0,58866.0,5.632569]
[1617393413984,0.00677682,58867.0,58866.0,1.672569]
[1617393414188,0.00177682,58867.0,58866.0,1.707569]
[1617393414385,0.00177682,58867.0,58866.0,0.339686]
[1617393416184,0.00177682,58867.0,58866.0,0.727569]
[1617393416607,0.00177682,58867.0,58866.0,0.882569]
[1617393417007,0.00177682,58867.0,58866.0,0.494686]
[1617393417865,0.00177682,58867.0,58866.0,0.882569]
[1617393418067,0.00177682,58867.0,58866.0,0.494686]
[1617393418266,0.00177682,58867.0,58866.0,0.155]
[1617393419465,0.00177682,58867.0,58864.0,0.254789]
[1617393419668,0.00177682,58867.0,58865.0,0.387883]
[1617393420067,0.00177682,58867.0,58861.0,0.36728285]
[1617393420269,0.00177682,58867.0,58861.0,0.31728285]
[1617393420470,0.00177682,58867.0,58862.0,0.135]
[1617393422068,0.00177682,58867.0,58864.0,0.254786]
[1617393422469,0.00177682,58867.0,58865.0,0.387883]
[1617393422669,0.00177682,58867.0,58864.0,0.254786]
[1617393422869,0.00177682,58867.0,58866.0,2.5]
[1617393423068,0.00177682,58867.0,58866.0,0.16]
[1617393423276,0.00177682,58867.0,58861.0,0.31728285]
[1617393423469,0.00177682,58867.0,58864.0,0.254783]
[1617393424497,0.00177682,58867.0,58865.0,0.387883]
[1617393425095,0.98898682,58868.0,58866.0,3.96]
[1617393425296,0.98898682,58868.0,58867.0,3.467883]
[1617393425499,0.98898682,58868.0,58867.0,3.432883]
[1617393425695,0.98898682,58868.0,58867.0,0.352883]
[1617393425893,0.98898682,58868.0,58867.0,0.547883]
[1617393426296,0.98898682,58868.0,58867.0,1.707883]
[1617393426495,0.98398682,58868.0,58867.0,3.817883]
[1617393427308,0.98398682,58868.0,58867.0,2.587883]
[1617393427514,0.98398682,58868.0,58867.0,1.707883]
[1617393428111,0.98398682,58868.0,58867.0,0.195]
[1617393428512,0.98398682,58868.0,58861.0,0.31728285]
[1617393429312,1.70499109,58868.0,58861.0,0.31728285]
[1617393429567,0.387921,58867.0,58861.0,0.31728285]
[1617393429751,0.205,58866.0,58861.0,0.31728285]
[1617393429952,0.205,58866.0,58852.0,0.4675]
[1617393429953,0.387921,58865.0,58852.0,0.4675]
[1617393430152,0.205,58866.0,58852.0,0.4675]
[1617393430354,0.002,58865.0,58855.0,0.0054]
[1617393430552,0.17,58864.0,58856.0,0.387921]
[1617393430758,0.002,58865.0,58856.0,0.712921]
[1617393431351,0.98398682,58868.0,58858.0,0.0046]
[1617393431558,0.98398682,58868.0,58861.0,0.254801]
[1617393431753,0.98398682,58868.0,58862.0,0.145]
[1617393431950,0.98398682,58868.0,58861.0,0.254801]
[1617393432611,0.98398682,58868.0,58861.0,0.258801]
[1617393433012,0.98398682,58868.0,58862.0,0.387921]
[1617393433211,0.98398682,58868.0,58862.0,0.693561]
[1617393433422,0.98398682,58868.0,58863.0,0.449789]
[1617393433612,0.98398682,58868.0,58864.0,0.387921]
[1617393434214,0.98398682,58868.0,58865.0,0.3]
[1617393434411,0.98398682,58868.0,58866.0,0.387921]
[1617393434611,0.98398682,58868.0,58867.0,1.875]
[1617393434812,0.98398682,58868.0,58867.0,2.262921]
[1617393435018,0.98398682,58868.0,58867.0,0.612921]
[1617393435813,1.01898682,58868.0,58867.0,0.612921]
[1617393436215,1.01898682,58868.0,58867.0,0.225]
[1617393436618,1.01898682,58868.0,58863.0,0.254789]
[1617393436820,1.01898682,58868.0,58864.0,0.387921]
[1617393437417,1.01398682,58868.0,58863.0,0.254789]
[1617393437618,1.01398682,58868.0,58864.0,0.387921]
[1617393437817,1.01398682,58868.0,58865.0,0.155]
[1617393438017,1.01398682,58868.0,58866.0,0.387921]
[1617393438621,1.01398682,58868.0,58866.0,0.705081]
[1617393439021,1.01398682,58868.0,58866.0,0.31716]
[1617393439622,1.01398682,58868.0,58855.0,0.339731]
[1617393439828,1.01398682,58868.0,58856.0,0.004]
[1617393440036,0.72100427,58867.0,58855.0,0.339731]
[1617393440237,0.035,58866.0,58855.0,0.339731]
[1617393440435,0.26,58865.0,58855.0,0.339731]
[1617393440634,0.035,58864.0,58855.0,0.339731]
[1617393440837,0.035,58864.0,58856.0,0.387921]
[1617393441036,0.035,58864.0,58857.0,0.03493362]
[1617393441234,0.035,58864.0,58858.0,0.387921]
[1617393442038,0.035,58864.0,58858.0,0.642728]
[1617393442859,0.035,58864.0,58858.0,0.254807]
[1617393443858,0.035,58867.0,58860.0,0.0044]
[1617393444059,0.387921,58866.0,58862.0,0.254793]
[1617393444259,0.387921,58864.0,58862.0,0.254793]
[1617393444458,0.422921,58863.0,58862.0,0.254793]
[1617393444662,0.387921,58863.0,58862.0,0.254793]
[1617393445060,0.422921,58863.0,58862.0,0.254793]
[1617393445485,0.035,58863.0,58862.0,0.254793]
[1617393446088,0.035,58863.0,58862.0,1.864793]
[1617393446491,0.035,58863.0,58862.0,2.532714]
[1617393446890,0.035,58863.0,58862.0,2.789714]
[1617393447090,0.035,58863.0,58862.0,5.239714]
[1617393447292,0.035,58863.0,58862.0,5.312274]
[1617393448159,0.97898682,58868.0,58862.0,5.277274]
[1617393448362,0.97898682,58868.0,58863.0,1.807921]
[1617393448560,0.97898682,58868.0,58863.0,2.652921]
[1617393448763,0.97898682,58868.0,58867.0,0.387921]
[1617393449065,0.97898682,58868.0,58867.0,4.580544]
[1617393449265,0.97898682,58868.0,58867.0,5.730544]
[1617393451064,0.97898682,58868.0,58867.0,3.610544]
[1617393451272,0.97898682,58868.0,58867.0,3.570544]
[1617393451866,0.97898682,58868.0,58867.0,3.470544]
[1617393452065,0.97898682,58868.0,58867.0,3.420544]
[1617393452267,0.97898682,58868.0,58867.0,1.0]
[1617393452469,0.97898682,58868.0,58865.0,0.254744]
[1617393453071,0.72100427,58867.0,58863.0,0.1]
[1617393453272,0.387921,58864.0,58853.0,0.00103637]
[1617393453470,0.387921,58864.0,58852.0,0.4675]
[1617393453471,0.72100427,58863.0,58852.0,0.4675]
[1617393453682,0.387921,58864.0,58852.0,0.4675]
[1617393453683,1.10892527,58864.0,58852.0,0.4675]
[1617393453887,0.387921,58864.0,58852.0,0.4675]
[1617393454073,0.387921,58862.0,58852.0,0.4675]
[1617393454269,0.747921,58862.0,58852.0,0.4675]
[1617393454470,0.387921,58862.0,58852.0,0.4675]
[1617393455072,0.387921,58862.0,58853.0,0.3]
[1617393455270,0.07584,58863.0,58853.0,0.3]
[1617393455471,0.97,58866.0,58853.0,0.2944]
[1617393455672,0.97,58866.0,58857.0,0.254803]
[1617393455896,0.97,58866.0,58859.0,0.3303667]
[1617393456093,0.97,58866.0,58857.0,0.254803]
[1617393457297,0.002,58867.0,58857.0,0.258803]
[1617393458519,0.97898682,58868.0,58857.0,0.258803]
[1617393461942,0.97898682,58868.0,58858.0,0.387921]
[1617393463170,0.97898682,58868.0,58858.0,0.437921]
[1617393463371,0.97898682,58868.0,58859.0,0.156]
[1617393463572,0.97898682,58868.0,58857.0,0.004]
[1617393463798,0.97898682,58868.0,58858.0,0.16]
[1617393463996,0.97898682,58868.0,58859.0,0.254802]
[1617393465601,0.2296196,58867.0,58859.0,0.254802]
[1617393465798,0.97898682,58868.0,58855.0,0.254818]
[1617393467800,0.71600427,58876.0,58856.0,3.77]
[1617393468000,0.256823,58869.0,58858.0,0.16]
[1617393468204,0.06,58868.0,58858.0,0.16]
[1617393468802,0.06,58868.0,58859.0,0.505]
[1617393469226,0.06,58868.0,58859.0,0.5094]
[1617393469425,0.06,58868.0,58860.0,0.68]
[1617393471035,0.06,58868.0,58861.0,0.387921]
[1617393471649,0.06,58868.0,58860.0,0.68]
[1617393471849,0.06,58868.0,58861.0,0.705]
[1617393472248,0.06,58868.0,58861.0,0.7]
[1617393473049,0.06,58868.0,58862.0,0.387921]
[1617393473251,0.06,58868.0,58861.0,0.7]
[1617393473453,0.06,58868.0,58863.0,0.387921]
[1617393474478,0.06,58868.0,58859.0,0.30700781]
[1617393474479,0.06,58868.0,58867.0,2.557921]
[1617393474677,0.06,58868.0,58867.0,0.387921]
[1617393476081,0.06,58868.0,58867.0,0.597921]
[1617393477502,0.06,58868.0,58867.0,0.387921]
[1617393482959,0.074293,58868.0,58867.0,0.387921]
[1617393484159,0.074293,58868.0,58864.0,0.25478]
[1617393484359,0.71600427,58881.0,58865.0,1.49]
[1617393484565,0.002,58878.0,58866.0,0.26]
[1617393484761,0.002,58878.0,58865.0,1.49]
[1617393484762,0.71600427,58877.0,58865.0,1.49]
[1617393485160,0.254792,58875.0,58865.0,1.49]
[1617393485765,0.254792,58875.0,58866.0,0.747921]
[1617393485962,0.254792,58875.0,58866.0,0.647921]
[1617393486363,0.254792,58875.0,58867.0,0.1]
[1617393486565,0.254792,58875.0,58866.0,0.26]